bitfinex/quotes_BTCUSD_20240902
["timestamp","ask_amount","ask_price","bid_price","bid_amount"]
[1725272704917,0.238596,58677.0,58665.0,0.00340863]
[1725272705169,0.119287,58682.0,58667.0,0.2852]
[1725272705410,0.003,58690.0,58670.0,0.003]
[1725272705411,0.50540786,58685.0,58670.0,0.003]
[1725272705639,0.50540786,58685.0,58671.0,0.00340803]
[1725272705891,0.119297,58677.0,58672.0,0.00340811]
[1725272706120,0.238575,58682.0,58675.0,0.002]
[1725272706356,0.23857,58683.0,58675.0,0.002]
[1725272706588,0.11929,58681.0,58677.0,0.002]
[1725272706840,0.119282,58685.0,58677.0,0.002]
[1725272707094,0.000816,58688.0,58678.0,0.00340787]
[1725272707330,0.000816,58688.0,58679.0,0.2674]
[1725272707331,0.002816,58688.0,58679.0,0.2674]
[1725272707552,0.119287,58682.0,58679.0,0.2674]
[1725272707774,0.119291,58680.0,58679.0,0.2674]
[1725272707999,0.119301,58675.0,58673.0,0.1944]
[1725272708267,0.119302,58675.0,58673.0,0.1944]
[1725272708502,0.238582,58680.0,58673.0,0.1944]
[1725272708503,0.357909,58674.0,58673.0,0.1944]
[1725272708734,0.119303,58674.0,58673.0,0.1944]
[1725272708962,0.238587,58679.0,58662.0,0.2835]
[1725272708963,0.119325,58663.0,58662.0,0.2835]
[1725272709208,0.00125505,58677.0,58653.0,0.009]
[1725272709209,0.001,58664.0,58655.0,0.2886]
[1725272709443,0.001,58662.0,58655.0,0.2886]
[1725272709698,0.358018,58656.0,58655.0,0.2886]
[1725272709932,0.596697,58656.0,58655.0,0.2886]
[1725272710180,0.599707,58655.0,58654.0,0.1]
[1725272710541,1.31879,58655.0,58654.0,0.1]
[1725272711013,0.83839,58655.0,58654.0,0.1]
[1725272711501,0.83839,58655.0,58654.0,0.114]
[1725272711691,0.83839,58655.0,58654.0,0.1]
[1725272713345,0.83839,58655.0,58654.0,0.103]
[1725272713608,0.359024,58655.0,58654.0,0.103]
[1725272713845,0.119341,58655.0,58654.0,0.1]
[1725272714059,0.360024,58655.0,58654.0,0.105]
[1725272714294,0.361024,58655.0,58654.0,0.1]
[1725272714512,0.599707,58655.0,58654.0,0.1]
[1725272714732,0.599707,58655.0,58654.0,0.11]
[1725272714977,0.361024,58655.0,58654.0,0.1]
[1725272715193,0.596707,58655.0,58654.0,0.1]
[1725272715417,0.358024,58655.0,58654.0,0.1]
[1725272715639,0.361024,58655.0,58654.0,0.1]
[1725272716095,0.83839,58655.0,58654.0,0.1]
[1725272716326,1.75171821,58655.0,58654.0,0.1]
[1725272716590,1.75171821,58655.0,58654.0,0.114]
[1725272716591,1.99040121,58655.0,58654.0,0.114]
[1725272716828,1.684073,58655.0,58654.0,0.1]
[1725272717350,1.684073,58655.0,58654.0,0.114]
[1725272717600,1.684073,58655.0,58654.0,0.1]
[1725272717844,1.684073,58655.0,58654.0,0.106]
[1725272718074,1.569732,58655.0,58654.0,0.1]
[1725272718305,1.927756,58655.0,58654.0,0.1]
[1725272719227,1.922756,58655.0,58654.0,0.1]
[1725272719900,1.922756,58655.0,58654.0,0.104]
[1725272720161,0.838635,58638.0,58637.0,0.0008976]
[1725272720412,1.287435,58638.0,58637.0,0.0008976]
[1725272721378,1.287435,58638.0,58637.0,0.0148976]
[1725272721629,0.838635,58638.0,58637.0,0.0148976]
[1725272721879,0.8654,58638.0,58637.0,0.0148976]
[1725272722780,0.8654,58638.0,58637.0,0.0008976]
[1725272723002,0.8654,58638.0,58637.0,0.0148976]
[1725272723436,0.8654,58638.0,58637.0,0.0008976]
[1725272723734,0.8654,58638.0,58637.0,0.0148976]
[1725272724446,1.402553,58638.0,58637.0,0.0148976]
[1725272724702,1.688553,58638.0,58637.0,0.0148976]
[1725272724964,1.927306,58638.0,58637.0,0.0148976]
[1725272725199,1.688553,58638.0,58637.0,0.0148976]
[1725272725671,1.932306,58638.0,58637.0,0.0148976]
[1725272725896,0.592698,58627.0,58626.0,0.008976]
[1725272726121,1.070292,58627.0,58626.0,0.008976]
[1725272726363,1.647886,58627.0,58626.0,0.008976]
[1725272726610,1.93644961,58627.0,58626.0,0.008976]
[1725272726866,1.93644961,58627.0,58620.0,1e-06]
[1725272726867,0.888955,58621.0,58620.0,1e-06]
[1725272727086,1.127777,58621.0,58620.0,1e-06]
[1725272727360,1.227777,58621.0,58620.0,1e-06]
[1725272727643,1.489599,58621.0,58620.0,1e-06]
[1725272728206,0.843947,58616.0,58615.0,8.7e-07]
[1725272728676,1.444631,58616.0,58615.0,8.7e-07]
[1725272728898,1.205789,58616.0,58615.0,8.7e-07]
[1725272729583,1.200789,58616.0,58615.0,8.7e-07]
[1725272730082,1.177789,58616.0,58615.0,8.7e-07]
[1725272730298,1.20456957,58616.0,58615.0,8.7e-07]
[1725272730536,1.177789,58616.0,58615.0,8.7e-07]
[1725272730774,0.838947,58616.0,58615.0,8.7e-07]
[1725272731439,1.077789,58616.0,58615.0,8.7e-07]
[1725272731922,1.177789,58616.0,58615.0,8.7e-07]
[1725272732135,1.205789,58616.0,58615.0,8.7e-07]
[1725272732587,1.444631,58616.0,58615.0,8.7e-07]
[1725272732807,1.444631,58616.0,58605.0,0.008976]
[1725272732808,1.356861,58612.0,58611.0,8.7e-07]
[1725272733028,1.5244471,58612.0,58611.0,8.7e-07]
[1725272733246,0.83909,58606.0,58605.0,8.7e-07]
[1725272733463,1.934939,58606.0,58605.0,8.7e-07]
[1725272733684,1.99862736,58606.0,58605.0,8.7e-07]
[1725272733903,2.354679,58606.0,58605.0,8.7e-07]
[1725272734339,2.236238,58606.0,58605.0,8.7e-07]
[1725272734579,2.353679,58606.0,58605.0,8.7e-07]
[1725272734799,2.21391589,58606.0,58605.0,8.7e-07]
[1725272735054,1.92734453,58606.0,58605.0,8.7e-07]
[1725272735349,1.68846153,58606.0,58605.0,8.7e-07]
[1725272735565,1.176973,58606.0,58605.0,8.7e-07]
[1725272736781,1.1767158,58606.0,58605.0,8.7e-07]
[1725272737661,0.9378328,58606.0,58605.0,8.7e-07]
[1725272738127,0.5989498,58606.0,58605.0,8.7e-07]
[1725272738384,0.3580668,58606.0,58605.0,8.7e-07]
[1725272738914,0.3580668,58606.0,58605.0,0.28270087]
[1725272739168,0.119437,58609.0,58605.0,0.28270087]
[1725272739415,0.240856,58613.0,58605.0,0.28270087]
[1725272739416,0.119441,58606.0,58605.0,0.28270087]
[1725272739636,0.119438,58608.0,58605.0,0.28270087]
[1725272739871,0.23966,58616.0,58606.0,0.1977]
[1725272739872,0.000817,58616.0,58606.0,0.1977]
[1725272740108,0.000817,58616.0,58613.0,0.2941]
[1725272740579,0.000817,58616.0,58614.0,0.1949]
[1725272741086,0.000817,58616.0,58615.0,0.640881]
[1725272741314,0.000817,58616.0,58615.0,1.081227]
[1725272741780,0.000817,58616.0,58615.0,0.842381]
[1725272742441,0.000817,58616.0,58615.0,0.847381]
[1725272742681,0.000817,58616.0,58615.0,1.082815]
[1725272743391,0.119375,58639.0,58627.0,0.4774]
[1725272743636,0.002,58641.0,58630.0,0.119392]
[1725272743637,0.50540786,58631.0,58630.0,0.119392]
[1725272743861,0.240712,58648.0,58638.0,0.2782]
[1725272744099,0.119366,58643.0,58639.0,0.1992]
[1725272744344,0.238712,58648.0,58639.0,0.1992]
[1725272744598,0.238688,58654.0,58639.0,0.1992]
[1725272744599,0.119372,58640.0,58639.0,0.1992]
[1725272744848,0.002,58643.0,58639.0,0.1992]
[1725272744849,0.02676118,58643.0,58639.0,0.1992]
[1725272745096,0.02676118,58643.0,58642.0,0.360104]
[1725272745307,0.119358,58647.0,58643.0,0.002]
[1725272745743,0.119361,58646.0,58644.0,0.002]
[1725272745963,0.14611552,58648.0,58644.0,0.002]
[1725272746195,0.119358,58647.0,58644.0,0.002]
[1725272746462,0.119358,58647.0,58642.0,0.2939]
[1725272746463,0.238717,58647.0,58642.0,0.2939]
[1725272746685,0.02675952,58648.0,58642.0,0.2939]
[1725272746935,0.358098,58643.0,58642.0,0.2939]
[1725272747154,0.59683,58643.0,58642.0,0.2939]
[1725272747375,0.59683,58643.0,58639.0,0.1992]
[1725272747376,0.358116,58640.0,58639.0,0.1992]
[1725272747831,0.119376,58638.0,58637.0,0.2671]
[1725272748060,0.119376,58638.0,58633.0,0.1891]
[1725272748061,0.358153,58634.0,58633.0,0.1891]
[1725272748995,0.596922,58634.0,58633.0,0.1891]
[1725272749684,0.358153,58634.0,58633.0,0.1891]
[1725272749906,0.358165,58632.0,58631.0,0.2671]
[1725272750162,0.119388,58632.0,58631.0,0.2671]
[1725272750871,0.358165,58632.0,58631.0,0.2671]
[1725272751100,0.358165,58632.0,58627.0,0.1831]
[1725272751101,0.358189,58628.0,58627.0,0.1831]
[1725272751341,0.1972,58652.0,58627.0,0.4523]
[1725272751586,0.00125505,58638.0,58627.0,0.4523]
[1725272751808,0.119396,58629.0,58627.0,0.4523]
[1725272752049,0.238765,58635.0,58627.0,0.4523]
[1725272752268,0.238766,58635.0,58627.0,0.4523]
[1725272752493,0.119386,58633.0,58628.0,0.119396]
[1725272752965,0.119383,58635.0,58629.0,0.119393]
[1725272753207,0.119387,58633.0,58628.0,0.119395]
[1725272753433,0.119383,58635.0,58629.0,0.119394]
[1725272753658,0.119386,58634.0,58629.0,0.119394]
[1725272753897,0.119387,58633.0,58627.0,0.571696]
[1725272754116,0.119387,58633.0,58628.0,0.119396]
[1725272754356,0.119379,58637.0,58631.0,0.119389]
[1725272754623,0.119381,58636.0,58631.0,0.119389]
[1725272755112,0.119381,58636.0,58631.0,0.121389]
[1725272755330,0.119381,58636.0,58629.0,0.238789]
[1725272755331,0.119382,58635.0,58629.0,0.358182]
[1725272755548,0.119389,58632.0,58627.0,0.571697]
[1725272755767,0.119389,58632.0,58621.0,0.005]
[1725272755768,0.119396,58628.0,58620.0,0.002]
[1725272756030,0.26552372,58637.0,58618.0,0.2839]
[1725272756031,0.119415,58619.0,58618.0,0.2839]
[1725272756265,0.00125505,58627.0,58619.0,0.002]
[1725272756266,0.119399,58627.0,58619.0,0.002]
[1725272756499,0.119395,58629.0,58624.0,0.119404]
[1725272756712,0.002,58632.0,58622.0,0.119408]
[1725272756933,0.119398,58627.0,58622.0,0.119408]
[1725272757185,0.119406,58624.0,58618.0,0.2839]
[1725272757394,0.11941,58622.0,58618.0,0.2839]
[1725272757830,0.002,58632.0,58618.0,0.2839]
[1725272757831,0.119415,58619.0,58618.0,0.2839]
[1725272758077,0.358245,58619.0,58618.0,0.2839]
[1725272759447,0.119411,58621.0,58618.0,0.2839]
[1725272759676,0.358245,58619.0,58618.0,0.2839]
[1725272760808,0.119415,58619.0,58618.0,0.2839]
[1725272761061,0.597075,58619.0,58618.0,0.2839]
[1725272761474,0.238822,58622.0,58618.0,0.2839]
[1725272761697,0.002,58632.0,58621.0,0.11941]
[1725272761698,0.119402,58626.0,58621.0,0.11941]
[1725272761929,0.002,58632.0,58618.0,0.2839]
[1725272762145,0.00325505,58632.0,58619.0,0.0034115]
[1725272762433,0.002,58632.0,58621.0,0.002]
[1725272762661,0.14616144,58630.0,58623.0,0.238814]
[1725272762901,0.238755,58638.0,58629.0,0.358183]
[1725272763129,0.238737,58642.0,58633.0,0.119386]
[1725272763373,0.00125505,58641.0,58630.0,0.278]
[1725272763621,0.119381,58636.0,58631.0,0.119389]
[1725272763845,0.238755,58638.0,58630.0,0.278]
[1725272764536,0.119383,58635.0,58630.0,0.278]
[1725272765030,0.11938,58637.0,58632.0,0.119388]
[1725272765252,0.02676438,58638.0,58631.0,0.119389]
[1725272765475,0.02676438,58638.0,58633.0,0.119385]
[1725272765919,0.02676438,58638.0,58631.0,0.238778]
[1725272766148,0.119379,58637.0,58632.0,0.119387]
[1725272766412,0.02676438,58638.0,58635.0,0.11938]
[1725272766667,0.14614238,58638.0,58631.0,0.238779]
[1725272766894,0.14614238,58638.0,58633.0,0.119386]
[1725272767371,0.119384,58634.0,58630.0,0.278]
[1725272767607,0.119381,58636.0,58630.0,0.278]
[1725272767829,0.119381,58636.0,58631.0,0.11939]
[1725272768064,0.119382,58635.0,58631.0,0.11939]
[1725272768294,0.238749,58639.0,58633.0,0.119386]
[1725272768529,0.238749,58639.0,58630.0,0.278]
[1725272768530,0.119379,58637.0,58631.0,0.119389]
[1725272769029,0.119383,58635.0,58630.0,0.397392]
[1725272769260,0.11938,58636.0,58631.0,0.119389]
[1725272769479,0.238753,58638.0,58631.0,0.119389]
[1725272769480,0.119383,58635.0,58631.0,0.119389]
[1725272769720,0.238753,58638.0,58632.0,0.119387]
[1725272769721,0.358131,58638.0,58632.0,0.119387]
[1725272769964,0.238753,58638.0,58632.0,0.119387]
[1725272770239,0.002817,58643.0,58627.0,0.431794]
[1725272770240,0.000817,58643.0,58642.0,0.580068]
[1725272770482,0.000817,58643.0,58642.0,1.05954]
[1725272771187,0.000817,58643.0,58642.0,1.303276]
[1725272771412,0.000816,58655.0,58654.0,1.073217]
[1725272771650,0.000816,58655.0,58654.0,1.311904]
[1725272771871,0.000816,58655.0,58654.0,1.173217]
[1725272772093,0.000816,58655.0,58654.0,0.5635]
[1725272772564,0.000816,58655.0,58654.0,0.805187]
[1725272772798,0.000816,58655.0,58654.0,0.92453]
[1725272773256,0.000816,58655.0,58654.0,0.685843]
[1725272774183,0.000816,58655.0,58654.0,0.682843]
[1725272774409,0.000816,58655.0,58654.0,0.5665]
[1725272774869,0.000816,58655.0,58649.0,0.2735]
[1725272775091,0.239499,58655.0,58650.0,0.1]
[1725272775317,0.35805,58651.0,58650.0,0.1]
[1725272775547,0.59675,58651.0,58650.0,0.1]
[1725272775786,0.358056,58650.0,58649.0,0.2735]
[1725272776003,0.000816,58655.0,58644.0,0.2844]
[1725272776004,0.119362,58645.0,58644.0,0.2844]
[1725272776242,0.000816,58655.0,58644.0,0.2844]
[1725272776454,0.11936,58646.0,58644.0,0.2844]
[1725272776936,0.358069,58648.0,58644.0,0.2844]
[1725272777155,0.358069,58648.0,58645.0,0.1]
[1725272777156,0.238712,58648.0,58645.0,0.1]
[1725272777392,0.358081,58646.0,58645.0,0.1]
[1725272778284,0.238715,58648.0,58641.0,0.003]
[1725272778538,0.119358,58647.0,58642.0,0.00341015]
[1725272778755,0.119354,58649.0,58644.0,0.119363]
[1725272778967,0.119354,58649.0,58642.0,0.238735]
[1725272778968,0.119353,58650.0,58645.0,0.1227709]
[1725272779231,0.119353,58650.0,58646.0,0.002]
[1725272779450,0.119353,58650.0,58646.0,0.11936]
[1725272779691,0.119353,58650.0,58646.0,0.12136]
[1725272780161,0.119353,58650.0,58644.0,0.119363]
[1725272780612,0.119358,58647.0,58642.0,0.119367]
[1725272780828,0.119358,58647.0,58643.0,0.1]
[1725272781049,0.238719,58647.0,58643.0,0.1]
[1725272781280,0.119363,58645.0,58643.0,0.1]
[1725272781499,0.119364,58644.0,58643.0,0.1]
[1725272781790,0.358092,58644.0,58643.0,0.1]
[1725272782015,0.358092,58644.0,58641.0,0.1]
[1725272782016,0.119368,58642.0,58641.0,0.1]
[1725272782475,0.358104,58642.0,58641.0,0.1]
[1725272783396,0.02675791,58652.0,58646.0,0.119359]
[1725272783626,0.02675791,58652.0,58646.0,0.12276892]
[1725272783627,0.11935,58651.0,58646.0,0.12276892]
[1725272783874,0.119352,58650.0,58645.0,0.002]
[1725272784102,0.26545691,58652.0,58646.0,0.00340996]
[1725272784103,0.35805,58651.0,58646.0,0.00340996]
[1725272784335,0.002816,58655.0,58652.0,0.002]
[1725272784572,0.002816,58655.0,58653.0,0.2877]
[1725272784820,0.002816,58655.0,58654.0,0.12475237]
[1725272785043,0.002816,58655.0,58654.0,0.36003]
[1725272785486,0.002816,58655.0,58654.0,0.35803]
[1725272785727,0.002816,58655.0,58654.0,0.598717]
[1725272785966,0.002816,58655.0,58654.0,0.791117]
[1725272786455,0.002816,58655.0,58654.0,1.415504]
[1725272786684,0.002816,58655.0,58654.0,1.438504]
[1725272791437,0.002816,58655.0,58654.0,1.56341305]
[1725272792381,0.002816,58655.0,58654.0,1.438504]
[1725272794688,0.002816,58655.0,58654.0,1.48843514]
[1725272795151,0.000816,58674.0,58666.0,0.097184]
[1725272795372,0.119311,58670.0,58667.0,0.002]
[1725272795597,0.119311,58670.0,58667.0,0.102]
[1725272796500,0.119315,58668.0,58667.0,0.1]
[1725272796731,0.119315,58668.0,58666.0,0.097184]
[1725272796732,0.119317,58667.0,58666.0,0.097184]
[1725272796975,1.121522,58667.0,58666.0,0.097184]
[1725272797273,0.882887,58667.0,58666.0,0.097184]
[1725272797520,0.596587,58667.0,58666.0,0.097184]
[1725272797960,0.357952,58667.0,58666.0,0.097184]
[1725272798400,0.119317,58667.0,58666.0,0.097184]
[1725272798625,0.23861,58673.0,58667.0,0.391216]
[1725272798866,0.11931,58671.0,58667.0,0.2739]
[1725272799088,0.119307,58672.0,58667.0,0.39662571]
[1725272799334,0.119309,58671.0,58667.0,0.2719]
[1725272799570,0.119311,58670.0,58667.0,0.2719]
[1725272799812,0.119308,58672.0,58668.0,0.187]
[1725272800031,0.119309,58671.0,58668.0,0.187]
[1725272800924,0.119313,58669.0,58666.0,0.097184]
[1725272801212,0.11931,58671.0,58666.0,0.097184]
[1725272801447,0.238612,58673.0,58667.0,0.119316]
[1725272801672,0.000816,58674.0,58667.0,0.119316]
[1725272801673,0.000816,58674.0,58673.0,0.126305]
[1725272801910,0.000816,58674.0,58673.0,0.89283288]
[1725272802152,0.000816,58674.0,58673.0,1.13644288]
[1725272802392,0.000816,58674.0,58673.0,1.21313288]
[1725272803083,0.000816,58674.0,58673.0,1.21113288]
[1725272803334,0.000816,58674.0,58673.0,0.941115]
[1725272803780,0.000816,58674.0,58673.0,0.943115]
[1725272803991,0.000816,58674.0,58673.0,0.938115]
[1725272804691,0.000816,58674.0,58673.0,0.936115]
[1725272806123,0.000816,58674.0,58673.0,0.511605]
[1725272806375,0.000816,58674.0,58673.0,0.219305]
[1725272806599,0.000816,58674.0,58673.0,0.459915]
[1725272806835,0.000816,58674.0,58673.0,0.698525]
[1725272807589,0.000816,58674.0,58673.0,1.171725]
[1725272808048,0.000816,58674.0,58673.0,1.176725]
[1725272808264,0.000816,58674.0,58673.0,1.181725]
[1725272808760,0.000816,58674.0,58673.0,1.443335]
[1725272808996,0.000816,58674.0,58673.0,1.444335]
[1725272809460,0.000816,58674.0,58673.0,1.446335]
[1725272809693,0.000816,58674.0,58673.0,1.444335]
[1725272809954,0.000816,58674.0,58673.0,1.202725]
[1725272810407,0.000816,58674.0,58673.0,0.939115]
[1725272810620,0.000816,58674.0,58673.0,0.936115]
[1725272810859,0.000816,58674.0,58673.0,0.695505]
[1725272811082,0.000816,58674.0,58673.0,0.933115]
[1725272811300,0.000816,58674.0,58673.0,0.755615]
[1725272811520,0.000816,58674.0,58673.0,0.103]
[1725272811747,0.000816,58674.0,58672.0,0.1]
[1725272811748,0.119305,58673.0,58672.0,0.1]
[1725272811976,0.119305,58673.0,58671.0,0.1]
[1725272812215,0.119305,58673.0,58669.0,0.122312]
[1725272812432,0.119305,58673.0,58670.0,0.1]
[1725272812902,0.119307,58672.0,58670.0,0.1]
[1725272813131,0.12012,58674.0,58670.0,0.1]
[1725272813362,0.12012,58674.0,58666.0,0.099184]
[1725272813363,0.119314,58669.0,58666.0,0.099184]
[1725272813583,0.000816,58674.0,58668.0,0.119314]
[1725272813805,0.119306,58673.0,58668.0,0.119314]
[1725272814354,0.119306,58673.0,58669.0,0.119313]
[1725272814577,0.119306,58673.0,58667.0,0.35795]
[1725272814820,0.119306,58673.0,58666.0,0.097184]
[1725272814821,0.000816,58674.0,58666.0,0.097184]
[1725272815045,0.119311,58670.0,58666.0,0.197184]
[1725272815266,0.119313,58669.0,58666.0,0.197184]
[1725272815486,0.000816,58674.0,58666.0,0.197184]
[1725272815709,0.119306,58673.0,58668.0,0.119313]
[1725272815938,0.119306,58673.0,58671.0,0.002]
[1725272816170,0.119306,58673.0,58669.0,0.121313]
[1725272816394,0.119306,58673.0,58669.0,0.119313]
[1725272816632,0.000816,58674.0,58670.0,0.12271854]
[1725272816853,0.000816,58674.0,58673.0,0.362915]
[1725272817082,0.000816,58674.0,58673.0,1.219835]
[1725272817302,0.000816,58674.0,58673.0,1.24071187]
[1725272817528,0.000816,58674.0,58673.0,0.929215]
[1725272817997,0.000816,58674.0,58673.0,0.1]
[1725272818223,0.000816,58674.0,58673.0,0.219305]
[1725272818665,0.119293,58679.0,58674.0,0.119302]
[1725272818882,0.119293,58679.0,58675.0,0.1]
[1725272819551,0.238577,58682.0,58675.0,0.1]
[1725272819781,0.119293,58679.0,58675.0,0.1]
[1725272820002,0.119289,58681.0,58676.0,0.119299]
[1725272820224,0.119289,58681.0,58677.0,0.1]
[1725272820502,0.238571,58683.0,58677.0,0.1]
[1725272820715,0.119293,58679.0,58677.0,0.1]
[1725272821166,0.119295,58678.0,58677.0,0.1]
[1725272821415,0.119302,58675.0,58670.0,0.1]
[1725272821633,0.1881,58677.0,58670.0,0.1]
[1725272821870,0.1881,58677.0,58666.0,0.102184]
[1725272821871,0.119306,58673.0,58668.0,0.122315]
[1725272822091,0.119306,58673.0,58669.0,0.1]
[1725272822305,0.2386,58676.0,58669.0,0.219312]
[1725272822790,0.119303,58674.0,58669.0,0.219312]
[1725272823063,0.2386,58676.0,58670.0,0.119311]
[1725272823064,0.3579,58676.0,58670.0,0.119311]
[1725272823313,0.02674529,58679.0,58678.0,0.119295]
[1725272823768,0.02674529,58679.0,58677.0,0.2661]
[1725272824697,0.02674529,58679.0,58676.0,0.119298]
[1725272824911,0.02674529,58679.0,58675.0,0.2386]
[1725272824912,0.02674529,58679.0,58677.0,0.119296]
[1725272825141,0.000816,58683.0,58676.0,0.238597]
[1725272825378,0.000816,58683.0,58679.0,0.119292]
[1725272825600,0.000816,58683.0,58677.0,0.23859]
[1725272825849,0.000816,58683.0,58678.0,0.1889]
[1725272826136,0.000816,58683.0,58673.0,0.2925]
[1725272826137,0.385207,58672.0,58666.0,0.097184]
[1725272826358,1.051835,58672.0,58666.0,0.097184]
[1725272826624,1.290449,58672.0,58666.0,0.097184]
[1725272826838,1.31719995,58672.0,58666.0,0.097184]
[1725272827541,1.051835,58672.0,58666.0,0.097184]
[1725272828011,1.529063,58672.0,58666.0,0.097184]
[1725272830114,1.529063,58672.0,58670.0,0.01]
[1725272831265,1.290449,58672.0,58670.0,0.01]
[1725272832035,0.596535,58672.0,58670.0,0.01]
[1725272833528,0.357921,58672.0,58670.0,0.01]
[1725272833755,0.2832,58681.0,58670.0,0.01]
[1725272833756,0.241387,58683.0,58671.0,0.2774976]
[1725272834014,0.2386,58676.0,58671.0,0.4695976]
[1725272834496,0.119304,58674.0,58671.0,0.4695976]
[1725272834950,0.119305,58673.0,58671.0,0.4695976]
[1725272835174,0.238575,58682.0,58671.0,0.4695976]
[1725272835401,0.238575,58682.0,58674.0,0.119302]
[1725272835627,0.238575,58682.0,58675.0,0.00340814]
[1725272835628,0.119293,58679.0,58675.0,0.00340814]
[1725272835895,0.119293,58679.0,58674.0,0.119302]
[1725272836339,0.119295,58678.0,58673.0,0.119305]
[1725272836557,0.119295,58678.0,58674.0,0.119303]
[1725272836558,0.02674447,58678.0,58674.0,0.119303]
[1725272836775,0.02674447,58678.0,58674.0,0.00340825]
[1725272837224,0.02674447,58678.0,58674.0,0.0008976]
[1725272837442,0.238578,58681.0,58674.0,0.0008976]
[1725272837696,0.000816,58683.0,58674.0,0.0008976]
[1725272837697,0.119301,58675.0,58674.0,0.0008976]
[1725272838513,0.119298,58677.0,58674.0,0.0008976]
[1725272839245,0.119299,58676.0,58674.0,0.0008976]
[1725272840016,0.119301,58675.0,58674.0,0.0008976]
[1725272840226,0.238592,58678.0,58674.0,0.0008976]
[1725272840227,0.119297,58678.0,58674.0,0.0008976]
[1725272840445,0.119299,58676.0,58674.0,0.0008976]
[1725272840676,0.119301,58675.0,58674.0,0.0008976]
[1725272841161,0.596505,58675.0,58674.0,0.0008976]
[1725272841374,0.119301,58675.0,58674.0,0.0008976]
[1725272841600,0.238592,58678.0,58674.0,0.0008976]
[1725272841860,0.119297,58677.0,58674.0,0.0008976]
[1725272842111,0.119299,58676.0,58674.0,0.0008976]
[1725272842325,0.26533058,58679.0,58674.0,0.0008976]
[1725272842538,0.119296,58678.0,58675.0,0.00340819]
[1725272842784,0.02674458,58679.0,58676.0,0.00340822]
[1725272843217,0.02674458,58679.0,58676.0,0.12270622]
[1725272843436,0.02674458,58679.0,58677.0,0.119296]
[1725272844840,0.02674458,58679.0,58677.0,0.122704]
[1725272845079,0.02674458,58679.0,58678.0,0.392203]
[1725272845296,0.02674458,58679.0,58678.0,0.388795]
[1725272845782,0.02674458,58679.0,58678.0,0.2695]
[1725272846776,0.38462358,58679.0,58678.0,0.2695]
[1725272847008,0.119301,58675.0,58674.0,0.0008976]
[1725272848186,0.357903,58675.0,58674.0,0.0008976]
[1725272848409,0.596505,58675.0,58674.0,0.01951376]
[1725272848675,0.835107,58675.0,58674.0,0.01951376]
[1725272848925,0.835107,58675.0,58674.0,0.0008976]
[1725272850538,0.86185447,58675.0,58674.0,0.0008976]
[1725272851208,0.62325247,58675.0,58674.0,0.0008976]
[1725272855555,0.02674747,58675.0,58674.0,0.1857976]
[1725272855771,0.02674747,58675.0,58674.0,0.20442996]
[1725272856931,0.02674747,58675.0,58674.0,0.61034124]
[1725272857174,0.02674747,58675.0,58674.0,0.60693296]
[1725272857404,0.119295,58678.0,58674.0,0.60693296]
[1725272857644,0.119297,58677.0,58675.0,0.01863236]
[1725272857826,0.119297,58677.0,58676.0,0.01863236]
[1725272858550,0.357891,58677.0,58676.0,0.01863236]
[1725272859281,0.119297,58677.0,58676.0,0.01863236]
[1725272859546,0.238575,58682.0,58676.0,0.01863236]
[1725272859780,0.238575,58682.0,58674.0,0.0008976]
[1725272859781,0.119295,58678.0,58677.0,0.01863236]
[1725272859989,0.115295,58678.0,58677.0,0.01863236]
[1725272860460,0.02674361,58678.0,58677.0,0.01863236]
[1725272860963,0.02674361,58678.0,58677.0,0.13792936]
[1725272861173,0.02674361,58678.0,58677.0,0.01863236]
[1725272861853,0.02674361,58678.0,58677.0,0.13792936]
[1725272862123,0.02674361,58678.0,58677.0,0.74250419]
[1725272862336,0.000816,58679.0,58678.0,0.367885]
[1725272862573,0.000816,58679.0,58678.0,0.72508819]
[1725272863254,0.000816,58679.0,58678.0,0.24290819]
[1725272863488,0.000816,58679.0,58678.0,0.24790819]
[1725272864611,0.000816,58679.0,58678.0,0.12861319]
[1725272864837,0.000816,58679.0,58678.0,0.12861031]
[1725272865069,0.000816,58679.0,58678.0,0.24790531]
[1725272865535,0.597281,58679.0,58678.0,0.01861031]
[1725272865986,0.86260971,58679.0,58678.0,0.01861031]
[1725272867349,0.835867,58679.0,58678.0,0.01861031]
[1725272868044,0.596505,58675.0,58674.0,0.0008976]
[1725272868285,0.596505,58675.0,58674.0,0.0195177]
[1725272869006,0.477204,58675.0,58674.0,0.0195177]
[1725272869204,0.239402,58679.0,58674.0,0.0195177]
[1725272869477,0.239402,58679.0,58675.0,0.0186201]
[1725272869478,0.120109,58679.0,58675.0,0.0186201]
[1725272869730,0.000816,58679.0,58676.0,0.0186201]
[1725272869941,0.000816,58679.0,58678.0,0.2667]
[1725272870198,0.000816,58679.0,58678.0,0.2853201]
[1725272870468,0.02755913,58679.0,58678.0,0.4795201]
[1725272870971,0.81032413,58679.0,58678.0,0.0186201]
[1725272871179,1.04891013,58679.0,58678.0,0.0186201]
[1725272871404,1.04891013,58679.0,58674.0,0.0008976]
[1725272871405,0.596505,58675.0,58674.0,0.0008976]
[1725272871864,0.596505,58675.0,58674.0,0.01953462]
[1725272873641,0.835107,58675.0,58674.0,0.01953462]
[1725272874870,0.835107,58675.0,58674.0,0.01953734]
[1725272875342,0.596505,58675.0,58674.0,0.01953734]
[1725272876028,0.596505,58675.0,58674.0,0.0008976]
[1725272877178,0.119301,58675.0,58674.0,0.0008976]
[1725272877434,0.119297,58677.0,58674.0,0.0008976]
[1725272877657,0.000816,58679.0,58675.0,0.19510804]
[1725272877882,0.000816,58679.0,58675.0,0.1917]